fUST/lending_fUST_20241203
["ID","MTS","AMOUNT","RATE_DAILY","PERIOD"]
[344033191,1733233771357,-500.0,0.00031014,7]
[344033192,1733233771380,-500.0,0.00031014,7]
[344033193,1733233771403,-500.0,0.00031014,7]
[344033194,1733233771427,-500.0,0.00031014,7]
[344033195,1733233771449,-500.0,0.00031014,7]
[344033196,1733233771476,-500.0,0.00031014,7]
[344033197,1733233771499,-500.0,0.00031014,7]
[344033198,1733233771523,-511.7834792,0.00031014,7]
[344033199,1733233771545,-483.36159737,0.00031014,7]
[344033200,1733233771571,-500.0,0.00031014,7]
[344033201,1733233771595,-500.0,0.00031014,7]
[344033202,1733233771619,-500.0,0.00031014,7]
[344033203,1733233771643,-500.0,0.00031014,7]
[344033204,1733233771666,-500.0,0.00031014,7]
[344033205,1733233771689,-500.0,0.00031014,7]
[344033206,1733233771714,-500.0,0.00031014,7]
[344033207,1733233771738,-500.0,0.00031014,7]
[344033208,1733233771763,-500.0,0.00031014,7]
[344033209,1733233771789,-500.0,0.00031014,7]
[344033210,1733233771813,-500.0,0.00031014,7]
[344033211,1733233771848,-501.8012392,0.00031014,7]
[344033212,1733233771871,-573.87828204,0.00031014,7]
[344033213,1733233771893,-504.58089983,0.00031014,7]
[344033214,1733233771917,-500.0,0.00031014,7]
[344033215,1733233771942,-164.72490386,0.00031014,7]
[344033216,1733233771966,-500.0,0.00031014,7]
[344033217,1733233771990,-500.0,0.00031014,7]
[344033218,1733233772014,-500.0,0.00031014,7]
[344033219,1733233772038,-500.0,0.00031014,7]
[344033220,1733233772062,-500.0,0.00031014,7]
[344033221,1733233772089,-500.0,0.00031014,7]
[344033222,1733233772114,-500.0,0.00031014,7]
[344033223,1733233772139,-500.0,0.00031014,7]
[344033224,1733233772164,-500.0,0.00031014,7]
[344033225,1733233772189,-500.0,0.00031014,7]
[344033226,1733233772212,-500.0,0.00031014,7]
[344033227,1733233772235,-282.62263487,0.00031014,7]
[344033228,1733233772259,-500.0,0.00031014,7]
[344033229,1733233772283,-500.0,0.00031014,7]
[344033230,1733233772307,-500.0,0.00031014,7]
[344033231,1733233772335,-500.0,0.00031014,7]
[344033232,1733233772360,-500.0,0.00031014,7]
[344033233,1733233772384,-500.0,0.00031014,7]
[344033234,1733233772409,-500.0,0.00031014,7]
[344033235,1733233772432,-500.0,0.00031014,7]
[344033236,1733233772457,-500.0,0.00031014,7]
[344033237,1733233772483,-500.0,0.00031014,7]
[344033238,1733233772507,-500.0,0.00031014,7]
[344033239,1733233772530,-500.0,0.00031014,7]
[344033240,1733233772553,-405.2,0.00031014,7]
[344033241,1733233772578,-500.0,0.00031014,7]
[344033242,1733233772602,-500.0,0.00031014,7]
[344033243,1733233772627,-500.0,0.00031014,7]
[344033244,1733233772650,-500.0,0.00031014,7]
[344033245,1733233772674,-500.0,0.00031014,7]
[344033246,1733233772697,-500.0,0.00031014,7]
[344033247,1733233772721,-500.0,0.00031014,7]
[344033248,1733233772745,-515.8,0.00031014,7]
[344033249,1733233772844,-500.0,0.00031014,7]
[344033250,1733233772870,-500.0,0.00031014,7]
[344033251,1733233772895,-500.0,0.00031014,7]
[344033252,1733233772921,-500.0,0.00031014,7]
[344033253,1733233772948,-500.0,0.00031014,7]
[344033254,1733233772974,-500.0,0.00031014,7]
[344033255,1733233772997,-500.0,0.00031014,7]
[344033256,1733233773024,-500.0,0.00031014,7]
[344033257,1733233773049,-500.0,0.00031014,7]
[344033258,1733233773078,-500.0,0.00031014,7]
[344033259,1733233773105,-500.0,0.00031014,7]
[344033260,1733233773134,-500.0,0.00031014,7]
[344033261,1733233773160,-500.0,0.00031014,7]
[344033262,1733233773186,-500.0,0.00031014,7]
[344033263,1733233773213,-500.0,0.00031014,7]
[344033264,1733233773239,-500.0,0.00031014,7]
[344033265,1733233773266,-500.0,0.00031014,7]
[344033266,1733233773291,-500.0,0.00031014,7]
[344033267,1733233773317,-500.0,0.00031014,7]
[344033268,1733233773347,-500.0,0.00031014,7]
[344033269,1733233773373,-500.0,0.00031014,7]
[344033270,1733233773400,-500.0,0.00031014,7]
[344033271,1733233773425,-500.0,0.00031014,7]
[344033272,1733233773450,-500.0,0.00031014,7]
[344033273,1733233773473,-500.0,0.00031014,7]
[344033274,1733233773497,-500.0,0.00031014,7]
[344033275,1733233773520,-500.0,0.00031014,7]
[344033276,1733233773545,-500.0,0.00031014,7]
[344033277,1733233773571,-500.0,0.00031014,7]
[344033278,1733233773597,-500.0,0.00031014,7]
[344033279,1733233773622,-500.0,0.00031014,7]
[344033280,1733233773646,-500.0,0.00031014,7]
[344033281,1733233773669,-500.0,0.00031014,7]
[344033282,1733233773692,-500.0,0.00031014,7]
[344033283,1733233773718,-500.0,0.00031014,7]
[344033284,1733233773742,-500.0,0.00031014,7]
[344033285,1733233773768,-500.0,0.00031014,7]
[344033286,1733233773795,-398.19997638,0.00031014,7]
[344033287,1733233773821,-500.0,0.00031021,7]
[344033288,1733233773847,-500.0,0.00031021,7]
[344033289,1733233773872,-550.0,0.00031021,7]
[344033290,1733233773896,-500.0,0.00031021,7]
[344033291,1733233773921,-500.0,0.00031021,7]
[344033292,1733233773944,-415.35797214,0.00031021,7]
[344033293,1733233773968,-500.0,0.00031021,7]
[344033294,1733233773992,-500.0,0.00031021,7]
[344033295,1733233774016,-500.0,0.00031021,7]
[344033296,1733233774041,-500.0,0.00031021,7]
[344033297,1733233774067,-500.0,0.00031021,7]
[344033298,1733233774095,-500.0,0.00031021,7]
[344033299,1733233774121,-500.0,0.00031021,7]
[344033300,1733233774146,-500.0,0.00031021,7]
[344033301,1733233774170,-500.0,0.00031021,7]
[344033302,1733233774196,-500.0,0.00031021,7]
[344033303,1733233774220,-500.0,0.00031021,7]
[344033304,1733233774243,-500.0,0.00031021,7]
[344033305,1733233774269,-500.0,0.00031021,7]
[344033306,1733233774294,-500.0,0.00031021,7]
[344033307,1733233774322,-500.0,0.00031021,7]
[344033308,1733233774347,-500.0,0.00031178,7]
[344033309,1733233774372,-155.00057227,0.00031179,2]
[344033310,1733233774398,-420.0,0.00031273,2]
[344033311,1733233774422,-500.0,0.00031288,7]
[344033312,1733233774445,-257.51654877,0.00031288,7]
[344033313,1733233774470,-500.0,0.00031288,7]
[344033314,1733233774494,-200.0,0.00031288,7]
[344033315,1733233774518,-503.83102278,0.00031288,7]
[344033316,1733233774541,-500.0,0.00031288,7]
[344033317,1733233774564,-326.39110737,0.00031288,7]
[344033318,1733233774595,-500.0,0.00031452,7]
[344033319,1733233774619,-1000.0,0.00031506,30]
[344033320,1733233774642,-1000.0,0.00031506,30]
[344033321,1733233774667,-1000.0,0.00031506,30]
[344033322,1733233774691,-1000.0,0.00031506,30]
[344033323,1733233774713,-1000.0,0.00031506,30]
[344033324,1733233774736,-1000.0,0.00031506,30]
[344033325,1733233774762,-1000.0,0.00031506,30]
[344033326,1733233774791,-1000.0,0.00031506,30]
[344033327,1733233774815,-1000.0,0.00031506,30]
[344033328,1733233774845,-1000.0,0.00031506,30]
[344033329,1733233774870,-1000.0,0.00031506,30]
[344033330,1733233774894,-1000.0,0.00031506,30]
[344033331,1733233774917,-1000.0,0.00031506,30]
[344033332,1733233774941,-1000.0,0.00031506,30]
[344033333,1733233774964,-1000.0,0.00031506,30]
[344033334,1733233775044,-1000.0,0.00031506,30]
[344033335,1733233775082,-1000.0,0.00031506,30]
[344033336,1733233775106,-500.0,0.00031506,30]
[344033337,1733233775130,-159.792836,0.00031546,2]
[344033338,1733233775155,-500.0,0.00031562,7]
[344033339,1733233775179,-506.07657769,0.00031562,7]
[344033340,1733233775202,-263.38735712,0.00031562,7]
[344033341,1733233775228,-500.0,0.00031562,7]
[344033342,1733233775253,-284.192,0.00031589,30]
[344033343,1733233775277,-500.0,0.00031836,7]
[344033344,1733233775300,-172.192571,0.00031921,2]
[344033345,1733233775326,-155.029657,0.00031921,2]
[344033346,1733233775350,-347.526517,0.00031921,2]
[344033347,1733233775375,-500.0,0.0003211,7]
[344033348,1733233775403,-152.68,0.000322,31]
[344033349,1733233775431,-152.68,0.000322,31]
[344033350,1733233775459,-152.68,0.000322,31]
[344033351,1733233775487,-152.68,0.000322,31]
[344033352,1733233775517,-152.68,0.000322,31]
[344033353,1733233775545,-152.68,0.000322,31]
[344033354,1733233775573,-152.68,0.000322,31]
[344033355,1733233775601,-152.68,0.000322,31]
[344033356,1733233775628,-152.68,0.000322,31]
[344033357,1733233775655,-152.68,0.000322,31]
[344033358,1733233775682,-152.68,0.000322,31]
[344033359,1733233775709,-152.68,0.000322,31]
[344033360,1733233775736,-152.68,0.000322,31]
[344033361,1733233775762,-152.68,0.000322,31]
[344033362,1733233775792,-152.68,0.000322,31]
[344033363,1733233775821,-152.68,0.000322,31]
[344033364,1733233775845,-155.029657,0.0003232,2]
[344033365,1733233775869,-347.526517,0.0003232,2]
[344033366,1733233775893,-500.0,0.00032369,4]
[344033367,1733233775920,-500.0,0.00032384,7]
[344033368,1733233775944,-500.0,0.00032658,7]
[344033369,1733233775968,-155.029657,0.00032719,2]
[344033370,1733233775992,-347.526517,0.00032719,2]
[344033371,1733233776016,-208.4567587,0.00032877,2]
[344033372,1733233776040,-614.21,0.00032932,7]
[344033373,1733233776066,-155.029657,0.00033118,2]
[344033374,1733233776091,-347.526517,0.00033118,2]
[344033375,1733233776117,-172.192571,0.00033517,2]
[344033376,1733233776143,-155.029657,0.00033517,2]
[344033377,1733233776168,-347.526517,0.00033517,2]
[344033378,1733233776192,-587.0,0.00033741,2]
[344033379,1733233776217,-151.0,0.00033753,120]
[344033380,1733233776242,-12059.42067308,0.00034,9]
[344033381,1733233776272,-152.68,0.00034,31]
[344033382,1733233776300,-152.68,0.00034,31]
[344033383,1733233776328,-152.68,0.00034,31]
[344033384,1733233776356,-152.68,0.00034,31]
[344033385,1733233776383,-152.68,0.00034,31]
[344033386,1733233776411,-152.68,0.00034,31]
[344033387,1733233776441,-152.68,0.00034,31]
[344033388,1733233776469,-152.68,0.00034,31]
[344033389,1733233776497,-152.68,0.00034,31]
[344033390,1733233776525,-152.68,0.00034,31]
[344033391,1733233776552,-152.68,0.00034,31]
[344033392,1733233776578,-152.68,0.00034,31]
[344033393,1733233776605,-152.68,0.00034,31]
[344033394,1733233776631,-152.68,0.00034,31]
[344033395,1733233776657,-152.68,0.00034,31]
[344033396,1733233776684,-152.68,0.00034,31]
[344033397,1733233776708,-274.260835,0.00034,30]
[344033398,1733233776731,-150.0,0.00034653,2]
[344033399,1733233776755,-1214.81026395,0.00034653,2]
[344033400,1733233776858,-5728.22292007,0.00031005,2]
[344033401,1733233776890,-959.18973605,0.00034653,2]
[344033402,1733233776915,-372.0,0.000348,3]
[344033403,1733233776938,-1333.0,0.00034849,120]
[344033404,1733233776963,-278.599999,0.000349,10]
[344033405,1733233776986,-278.599999,0.000349,10]
[344033406,1733233777009,-20856.0768813,0.00035,2]
[344033407,1733233777032,-967.92673628,0.00035,2]
[344033408,1733233777141,-500.0,0.00035,2]
[344033409,1733233777172,-506.34833296,0.00035,2]
[344033410,1733233777196,-500.0,0.00035,2]
[344033411,1733233777221,-500.0,0.00035,2]
[344033412,1733233777246,-500.0,0.00035,2]
[344033413,1733233777271,-916.81411429,0.00035,2]
[344033414,1733233777296,-967.4,0.00035,2]
[344033415,1733233777321,-500.0,0.00035,2]
[344033416,1733233777345,-500.0,0.00035,2]
[344033417,1733233777368,-500.0,0.00035,2]
[344033418,1733233777390,-500.0,0.00035,2]
[344033419,1733233777415,-500.0,0.00035,2]
[344033420,1733233777437,-500.0,0.00035,2]
[344033421,1733233777462,-500.0,0.00035,2]
[344033422,1733233777485,-500.0,0.00035,2]
[344033423,1733233777508,-500.0,0.00035,2]
[344033424,1733233777532,-500.0,0.00035,2]
[344033425,1733233777554,-500.0,0.00035,2]
[344033426,1733233777578,-500.0,0.00035,2]
[344033427,1733233777601,-1600.0,0.00035,2]
[344033428,1733233777624,-1600.0,0.00035,2]
[344033429,1733233777648,-500.0,0.00035,2]
[344033430,1733233777671,-1600.0,0.00035,2]
[344033431,1733233777695,-868.01582369,0.00035,2]
[344033432,1733233777721,-1600.0,0.00035,2]
[344033433,1733233777745,-1600.0,0.00035,2]
[344033434,1733233777768,-1600.0,0.00035,2]
[344033435,1733233777791,-1600.0,0.00035,2]
[344033436,1733233777815,-1600.0,0.00035,2]
[344033437,1733233777841,-1600.0,0.00035,2]
[344033438,1733233777866,-1600.0,0.00035,2]
[344033439,1733233777891,-1600.0,0.00035,2]
[344033440,1733233777915,-1600.0,0.00035,2]
[344033441,1733233777942,-1600.0,0.00035,2]
[344033442,1733233777968,-1600.0,0.00035,2]
[344033443,1733233777993,-1600.0,0.00035,2]
[344033444,1733233778022,-2050.01795368,0.00035,2]
[344033445,1733233778049,-1600.0,0.00035,2]
[344033446,1733233778079,-1600.0,0.00035,2]
[344033447,1733233778109,-1600.0,0.00035,2]
[344033448,1733233778135,-1600.0,0.00035,2]
[344033449,1733233778160,-1600.0,0.00035,2]
[344033450,1733233778184,-1600.0,0.00035,2]
[344033451,1733233778207,-1600.0,0.00035,2]
[344033452,1733233778230,-1600.0,0.00035,2]
[344033453,1733233778254,-1600.0,0.00035,2]
[344033454,1733233778277,-1600.0,0.00035,2]
[344033455,1733233778300,-1600.0,0.00035,2]
[344033456,1733233778327,-2129.01806673,0.00035,2]
[344033457,1733233778350,-151.0,0.00035452,120]
[344033458,1733233778375,-1000.0,0.00035616,120]
[344033459,1733233778399,-1000.0,0.0003589,120]
[344033460,1733233778423,-248.0,0.0003589,2]
[344033461,1733233778446,-300.0,0.000359,12]
[344033462,1733233778472,-300.0,0.000359,12]
[344033463,1733233778498,-152.68,0.000359,31]
[344033464,1733233778524,-152.68,0.000359,31]
[344033465,1733233778550,-152.68,0.000359,31]
[344033466,1733233778580,-152.68,0.000359,31]
[344033467,1733233778606,-152.68,0.000359,31]
[344033468,1733233778632,-152.68,0.000359,31]
[344033469,1733233778659,-152.68,0.000359,31]
[344033470,1733233778688,-152.68,0.000359,31]
[344033471,1733233778714,-152.68,0.000359,31]
[344033472,1733233778739,-152.68,0.000359,31]
[344033473,1733233778766,-152.68,0.000359,31]
[344033474,1733233778793,-152.68,0.000359,31]
[344033475,1733233778819,-152.68,0.000359,31]
[344033476,1733233778852,-152.68,0.000359,31]
[344033477,1733233778880,-152.68,0.000359,31]
[344033478,1733233778907,-152.68,0.000359,31]
[344033479,1733233778930,-10263.47205118,0.00035998,2]
[344033480,1733233778953,-150.04107,0.00036,2]
[344033481,1733233778975,-248.0,0.00036,2]
[344033482,1733233778997,-250.0,0.00036,30]
[344033483,1733233779019,-1000.0,0.00036164,120]
[344033484,1733233779042,-170.78253416,0.00036246,2]
[344033485,1733233779065,-2197.08693566,0.00036246,2]
[344033486,1733233779164,-718.0,0.00036403,2]
[344033487,1733233779191,-1000.0,0.00036438,120]
[344033488,1733233779215,-150.0,0.00036661,2]
[344033489,1733233779240,-1000.0,0.00036712,120]
[344033490,1733233779265,-244.12286996,0.00036822,2]
[344033491,1733233779292,-300.0,0.000369,14]
[344033492,1733233779317,-300.0,0.000369,14]
[344033493,1733233779340,-1000.0,0.00036986,120]
[344033494,1733233779362,-500.41878272,0.00037126,10]
[344033495,1733233779384,-500.0,0.00037126,10]
[344033496,1733233779407,-500.0,0.00037126,10]
[344033497,1733233779431,-500.0,0.00037126,10]
[344033498,1733233779456,-500.0,0.00037126,10]
[344033499,1733233779480,-500.0,0.00037126,10]
[344033500,1733233779504,-1600.0,0.00037126,10]
[344033501,1733233779528,-1600.0,0.00037126,10]
[344033502,1733233779552,-1600.0,0.00037126,10]
[344033503,1733233779573,-500.0,0.00037126,10]
[344033504,1733233779597,-1600.0,0.00037126,10]
[344033505,1733233779619,-500.0,0.00037126,10]
[344033506,1733233779643,-1600.0,0.00037126,10]
[344033507,1733233779666,-947.82168844,0.00037126,10]
[344033508,1733233779689,-1600.0,0.00037126,10]
[344033509,1733233779713,-1600.0,0.00037126,10]
[344033510,1733233779738,-1600.0,0.00037126,10]
[344033511,1733233779763,-1600.0,0.00037126,10]
[344033512,1733233779788,-1600.0,0.00037126,10]
[344033513,1733233779812,-1600.0,0.00037126,10]
[344033514,1733233779836,-1600.0,0.00037126,10]
[344033515,1733233779860,-1600.0,0.00037126,10]
[344033516,1733233779883,-1600.0,0.00037126,10]
[344033517,1733233779905,-1600.0,0.00037126,10]
[344033518,1733233779934,-163.21598222,0.00037126,10]
[344033519,1733233779958,-1600.0,0.00037126,10]
[344033520,1733233779982,-1600.0,0.00037126,10]
[344033521,1733233780007,-1600.0,0.00037126,10]
[344033522,1733233780030,-1600.0,0.00037126,10]
[344033523,1733233780054,-1600.0,0.00037126,10]
[344033524,1733233780089,-1600.0,0.00037126,10]
[344033525,1733233780114,-1600.0,0.00037126,10]
[344033526,1733233780139,-1600.0,0.00037126,10]
[344033527,1733233780165,-1600.0,0.00037126,10]
[344033528,1733233780192,-1600.0,0.00037126,10]
[344033529,1733233780218,-1600.0,0.00037126,10]
[344033530,1733233780244,-1600.0,0.00037126,10]
[344033531,1733233780270,-1600.0,0.00037126,10]
[344033532,1733233780295,-1600.0,0.00037126,10]
[344033533,1733233780321,-1600.0,0.00037126,10]
[344033534,1733233780346,-1000.0,0.0003726,120]
[344033535,1733233780371,-502.06337365,0.00037284,14]
[344033536,1733233780396,-500.0,0.00037314,14]
[344033537,1733233780423,-5000.0,0.00037385,4]
[344033538,1733233780446,-248.0,0.00037397,2]
[344033539,1733233780471,-151.0,0.00037507,120]
[344033540,1733233780494,-1000.0,0.00037534,120]
[344033541,1733233780523,-152.68,0.000378,31]
[344033542,1733233780552,-152.68,0.000378,31]
[344033543,1733233780580,-152.68,0.000378,31]
[344033544,1733233780609,-152.68,0.000378,31]
[344033545,1733233780635,-152.68,0.000378,31]
[344033546,1733233780662,-152.68,0.000378,31]
[344033547,1733233780692,-152.68,0.000378,31]
[344033548,1733233780719,-152.68,0.000378,31]
[344033549,1733233780745,-152.68,0.000378,31]
[344033550,1733233780771,-152.68,0.000378,31]
[344033551,1733233780799,-152.68,0.000378,31]
[344033552,1733233780826,-152.68,0.000378,31]
[344033553,1733233780856,-152.68,0.000378,31]
[344033554,1733233780883,-152.68,0.000378,31]
[344033555,1733233780914,270.73,0.00030995,10]
[344033556,1733233784445,225.61,0.00030995,10]
[344033557,1733233785534,1464.72462377,0.00036246,2]
[344033558,1733233788167,5794.70240858,0.00030905,2]
[344033559,1733233795138,188.01,0.00030995,10]
[344033560,1733233795491,976.48308251,0.00037396,2]
[344033561,1733233805381,650.98872168,0.00037396,2]
[344033562,1733233806036,156.67,0.00030995,10]
[344033563,1733233815369,433.99248112,0.00037396,2]
[344033564,1733233816956,783.38,0.00030995,10]
[344033565,1733233825270,289.32832074,0.00037396,2]
[344033606,1733233834658,-1284.15494,0.00031005,10]
[344033607,1733233834671,-999.888,0.00031005,10]
[344033608,1733233834683,-3397.15869085,0.00031005,10]
[344033610,1733233835282,192.88554716,0.00037396,2]
[344033611,1733233836229,151.0,0.00031005,7]
[344033616,1733233838299,-7255.0,0.00031005,10]
[344033618,1733233838444,-1455.99324082,0.00031005,10]
[344033619,1733233838460,-178500.0000014,0.00031005,10]
[344033629,1733233839650,-974.66840636,0.00031005,10]
[344033670,1733233843469,-958199.86481239,0.00031005,10]
[344033672,1733233843704,250.0,0.00034798,2]
[344033673,1733233843733,150.0,0.00037798,2]
[344033674,1733233843749,-740.18824677,0.00031005,10]
[344033675,1733233843761,-7824.0,0.00031005,10]
[344033676,1733233843773,-92273.05852746,0.00031005,10]
[344033677,1733233843787,-2498.33964295,0.00031005,10]
[344033688,1733233847724,150.01,0.00037396,2]
[344033691,1733233847893,-7772.3619,0.00031005,10]
[344033692,1733233847906,-2436.89484,0.00031005,10]
[344033696,1733233849403,-3021.60658694,0.00031005,10]
[344033697,1733233849444,-18850.0,0.00031005,10]
[344033698,1733233849460,-802.98548255,0.00031005,10]
[344033699,1733233849507,162.0,0.00036,2]
[344033700,1733233849557,162.0,0.00037397,2]
[344033701,1733233854334,340.75605959,0.00028886,2]
[344033702,1733233855116,433.03409389,0.00030136,7]
[344033703,1733233855149,500.0,0.00030136,7]
[344033704,1733233855658,235.76109433,0.00037797,2]
[344033705,1733233858595,500.0,0.00030136,7]
[344033707,1733233862498,400.0,0.00031004,2]
[344033708,1733233863217,320.0,0.00033381,2]
[344033709,1733233863818,500.0,0.00030136,7]
[344033710,1733233868943,500.0,0.00030136,7]
[344033711,1733233885761,500.0,0.00030136,7]
[344033712,1733233894403,430.24,0.000308,2]
[344033713,1733233895062,500.0,0.00030136,7]
[344033714,1733233895144,500.0,0.00030136,7]
[344033715,1733233897376,500.0,0.00030136,7]
[344033716,1733233900408,500.0,0.00030136,7]
[344033717,1733233900863,500.0,0.00030136,7]
[344033718,1733233908577,500.0,0.00030136,7]
[344033719,1733233910011,500.0,0.00030136,7]
[344033720,1733233910938,500.0,0.00031014,7]
[344033721,1733233911911,180.969357,0.00030137,120]
[344033722,1733233912150,180.969357,0.00037671,120]
[344033723,1733233913202,502.04279711,0.00030136,7]
[344033724,1733233916604,500.0,0.00030136,7]
[344033725,1733233917190,500.0,0.00030136,7]
[344033726,1733233919103,507.77322457,0.00030136,7]
[344033727,1733233922915,896.51572493,0.00030905,2]
[344033728,1733233930774,500.0,0.00030136,7]
[344033729,1733233931218,500.0,0.00030136,7]
[344033732,1733234404357,159.828135,0.00013973,2]
[344033735,1733234691816,152.36991823,0.0002,2]
[344033787,1733234826112,-1337.2923502,0.00029392,2]
[344033788,1733234826136,-195.35542666,0.000299,2]
[344033789,1733234826161,-151.0,0.0003,120]
[344033790,1733234826183,-2251.99,0.0003,2]
[344033791,1733234826206,-591.2788531,0.00030005,2]
[344033792,1733234826229,-500.0,0.00030081,2]
[344033793,1733234826257,-400.0,0.00030135,2]
[344033794,1733234826280,-400.0,0.00030135,2]
[344033795,1733234826302,-253.0,0.00030136,2]
[344033796,1733234826337,-500.0,0.00030136,7]
[344033797,1733234826364,-550.87598257,0.00030136,7]
[344033798,1733234826386,-500.0,0.00030136,7]
[344033799,1733234826409,-503.59843378,0.00030136,7]
[344033800,1733234826432,-500.0,0.00030136,7]
[344033801,1733234826456,-500.0,0.00030136,7]
[344033802,1733234826479,-500.0,0.00030136,7]
[344033803,1733234826510,-500.0,0.00030136,7]
[344033804,1733234826536,-500.0,0.00030136,7]
[344033805,1733234826560,-500.0,0.00030136,7]
[344033806,1733234826584,-500.0,0.00030136,7]
[344033807,1733234826607,-203.00092653,0.00030136,7]
[344033808,1733234826631,-528.8,0.00030136,7]
[344033809,1733234826655,-500.0,0.00030136,7]
[344033810,1733234826678,-500.0,0.00030136,7]
[344033811,1733234826701,-500.0,0.00030136,7]
[344033812,1733234826725,-500.0,0.00030136,7]
[344033813,1733234826754,-500.0,0.00030136,7]
[344033814,1733234826778,-500.0,0.00030136,7]
[344033815,1733234826801,-500.0,0.00030136,7]
[344033816,1733234826824,-500.0,0.00030136,7]
[344033817,1733234826848,-500.0,0.00030136,7]
[344033818,1733234826871,-500.0,0.00030136,7]
[344033819,1733234826895,-500.0,0.00030136,7]
[344033820,1733234826917,-608.21632912,0.00030136,7]
[344033821,1733234826942,-500.0,0.00030136,7]
[344033822,1733234826964,-500.0,0.00030136,7]
[344033823,1733234826987,-500.0,0.00030136,7]
[344033824,1733234827016,-500.0,0.00030136,7]
[344033825,1733234827039,-500.0,0.00030136,7]
[344033826,1733234827062,-500.0,0.00030136,7]
[344033827,1733234827085,-500.0,0.00030136,7]
[344033828,1733234827111,-500.0,0.00030136,7]
[344033829,1733234827134,-500.0,0.00030136,7]
[344033830,1733234827157,-303.34308914,0.00030136,7]
[344033831,1733234827182,-180.969357,0.00030137,120]
[344033832,1733234827206,-1449.69483533,0.000308,2]
[344033833,1733234827230,-491.29,0.000308,2]
[344033834,1733234827260,-1449.69483531,0.00030806,2]
[344033835,1733234827284,-1449.69483531,0.00030811,2]
[344033836,1733234827309,-1449.69483531,0.00030817,2]
[344033837,1733234827333,-1449.69483531,0.00030822,2]
[344033838,1733234827359,-1449.69483531,0.00030828,2]
[344033839,1733234827383,-1449.69483531,0.00030833,2]
[344033840,1733234827405,-190.72625754,0.00030839,2]
[344033841,1733234827429,-1449.69483531,0.00030839,2]
[344033842,1733234827455,-27702.61828219,0.00030839,3]
[344033843,1733234827479,-985.5181924,0.000309,3]
[344033844,1733234827506,-500.0,0.00030902,7]
[344033845,1733234827530,-500.0,0.00030902,7]
[344033846,1733234827554,-500.0,0.00030902,7]
[344033847,1733234827580,-500.0,0.00030902,7]
[344033848,1733234827603,-500.0,0.00030902,7]
[344033849,1733234827626,-500.0,0.00030902,7]
[344033850,1733234827651,-500.0,0.00030902,7]
[344033851,1733234827675,-168.0,0.00030902,7]
[344033852,1733234827699,-290.9960007,0.00030902,7]
[344033853,1733234827724,-500.0,0.00030906,7]
[344033854,1733234827751,-500.0,0.00030906,7]
[344033855,1733234827775,-500.0,0.00030906,7]
[344033856,1733234827798,-3833.84650006,0.00030907,2]
[344033857,1733234827822,-299.44,0.00030909,120]